[Event "*** SCC Grand Prix: Titled Tuesday Blitz"]
[Site "Chess.com"]
[Date "2020.06.02"]
[Round "3"]
[White "jaskol95"]
[Black "Unknown_IM"]
[Result "0-1"]
[WhiteElo "2272"]
[BlackElo "2513"]
[TimeControl "180+1"]
[EndTime "10:29:29 PDT"]
[Termination "Unknown_IM won by checkmate"]

1. d4 {[%clk 0:03:00.9]} 1... Nf6 {[%clk 0:02:59.4]} 2. c4 {[%clk 0:03:01]} 2...
e6 {[%clk 0:02:59.2]} 3. Nf3 {[%clk 0:03:00.5]} 3... c5 {[%clk 0:02:58.8]} 4. d5
{[%clk 0:02:57.8]} 4... exd5 {[%clk 0:02:59]} 5. cxd5 {[%clk 0:02:58.3]} 5... d6
{[%clk 0:02:59.3]} 6. Nc3 {[%clk 0:02:58.3]} 6... g6 {[%clk 0:02:59.6]} 7. Bf4
{[%clk 0:02:56.6]} 7... Bg7 {[%clk 0:02:55.6]} 8. e3 {[%clk 0:02:57]} 8... O-O
{[%clk 0:02:55.1]} 9. h3 {[%clk 0:02:57.3]} 9... a6 {[%clk 0:02:54.5]} 10. a4
{[%clk 0:02:57.1]} 10... Re8 {[%clk 0:02:53.5]} 11. Nd2 {[%clk 0:02:53.5]} 11...
Nbd7 {[%clk 0:02:43.7]} 12. Nc4 {[%clk 0:02:38.8]} 12... Ne4 {[%clk 0:02:29.4]}
13. Nxe4 {[%clk 0:02:29.9]} 13... Rxe4 {[%clk 0:02:28]} 14. Bd3 {[%clk
0:02:23.4]} 14... Rxc4 {[%clk 0:02:13.2]} 15. Bxc4 {[%clk 0:02:22.6]} 15... Bxb2
{[%clk 0:02:10.6]} 16. Rb1 {[%clk 0:02:01.3]} 16... Bc3+ {[%clk 0:02:07.4]} 17.
Kf1 {[%clk 0:02:01.7]} 17... Nb6 {[%clk 0:01:55.6]} 18. Qb3 {[%clk 0:01:51.8]}
18... Bb4 {[%clk 0:01:52.7]} 19. g3 {[%clk 0:01:44.4]} 19... Bf5 {[%clk
0:01:43.9]} 20. Rd1 {[%clk 0:01:32.9]} 20... Be4 {[%clk 0:01:31.2]} 21. Rg1
{[%clk 0:01:32.5]} 21... Qd7 {[%clk 0:01:24.9]} 22. g4 {[%clk 0:01:25.8]} 22...
Nxa4 {[%clk 0:01:11]} 23. Bd3 {[%clk 0:01:12.4]} 23... Bf3 {[%clk 0:01:04.2]}
24. Be2 {[%clk 0:01:11.8]} 24... Bxe2+ {[%clk 0:01:02.2]} 25. Kxe2 {[%clk
0:01:11.9]} 25... Nc3+ {[%clk 0:01:02.7]} 26. Kf3 {[%clk 0:01:11.5]} 26... Nxd1
{[%clk 0:00:58.4]} 27. Rxd1 {[%clk 0:01:11.9]} 27... a5 {[%clk 0:00:56.4]} 28.
Qb2 {[%clk 0:01:10.2]} 28... f5 {[%clk 0:00:29.5]} 29. g5 {[%clk 0:00:56.3]}
29... a4 {[%clk 0:00:25.9]} 30. h4 {[%clk 0:00:55.3]} 30... a3 {[%clk 0:00:25]}
31. Qa1 {[%clk 0:00:55.8]} 31... Qe7 {[%clk 0:00:20.5]} 32. h5 {[%clk 0:00:54]}
32... gxh5 {[%clk 0:00:16.7]} 33. g6 {[%clk 0:00:51]} 33... hxg6 {[%clk
0:00:15.4]} 34. Rg1 {[%clk 0:00:50.6]} 34... Qe4+ {[%clk 0:00:13.8]} 35. Ke2
{[%clk 0:00:48]} 35... Kf7 {[%clk 0:00:13.1]} 36. Bxd6 {[%clk 0:00:21.4]} 36...
Qxd5 {[%clk 0:00:09.7]} 37. Bf4 {[%clk 0:00:21.5]} 37... Qc4+ {[%clk 0:00:07.9]}
38. Kf3 {[%clk 0:00:20.9]} 38... Qe4+ {[%clk 0:00:07.9]} 39. Kg3 {[%clk
0:00:20.5]} 39... a2 {[%clk 0:00:08.4]} 40. Rd1 {[%clk 0:00:19.6]} 40... h4+
{[%clk 0:00:06]} 41. Kh2 {[%clk 0:00:17.3]} 41... c4 {[%clk 0:00:05.4]} 42. Rd7+
{[%clk 0:00:16.2]} 42... Be7 {[%clk 0:00:05.5]} 43. Bg5 {[%clk 0:00:11.8]} 43...
Re8 {[%clk 0:00:05.4]} 44. Qxa2 {[%clk 0:00:11.2]} 44... h3 {[%clk 0:00:03.3]}
45. Kxh3 {[%clk 0:00:07]} 45... Qg4+ {[%clk 0:00:03.2]} 46. Kh2 {[%clk 0:00:07]}
46... Rh8+ {[%clk 0:00:03.2]} 47. Bh4 {[%clk 0:00:06.5]} 47... Rxh4# {[%clk
0:00:03]} 0-1

[Event "*** SCC Grand Prix: Titled Tuesday Blitz"]
[Site "Chess.com"]
[Date "2020.06.02"]
[Round "3"]
[White "ChessBitl"]
[Black "Campelov"]
[Result "1/2-1/2"]
[WhiteElo "2336"]
[BlackElo "2155"]
[TimeControl "180+1"]
[EndTime "10:29:29 PDT"]
[Termination "Game drawn by stalemate"]

1. e4 {[%clk 0:02:56.7]} 1... c5 {[%clk 0:02:59.3]} 2. Nf3 {[%clk 0:02:55.4]}
2... e6 {[%clk 0:02:59.6]} 3. c4 {[%clk 0:02:54.5]} 3... Nc6 {[%clk 0:02:58.5]}
4. Nc3 {[%clk 0:02:54.8]} 4... d6 {[%clk 0:02:53.5]} 5. d4 {[%clk 0:02:54.3]}
5... cxd4 {[%clk 0:02:53.8]} 6. Nxd4 {[%clk 0:02:54.9]} 6... Nf6 {[%clk
0:02:54]} 7. Be3 {[%clk 0:02:54.3]} 7... a6 {[%clk 0:02:54]} 8. f3 {[%clk
0:02:54.4]} 8... Be7 {[%clk 0:02:54.3]} 9. Qd2 {[%clk 0:02:54.8]} 9... O-O
{[%clk 0:02:54.3]} 10. Be2 {[%clk 0:02:55.3]} 10... Bd7 {[%clk 0:02:54.7]} 11.
O-O {[%clk 0:02:55.7]} 11... Qc7 {[%clk 0:02:53.6]} 12. Rac1 {[%clk 0:02:53.9]}
12... Rac8 {[%clk 0:02:43.4]} 13. Rfd1 {[%clk 0:02:52]} 13... Rfd8 {[%clk
0:02:41.9]} 14. Nd5 {[%clk 0:02:51.5]} 14... exd5 {[%clk 0:02:39.6]} 15. cxd5
{[%clk 0:02:51.1]} 15... Nxd4 {[%clk 0:01:58.7]} 16. Rxc7 {[%clk 0:02:44.9]}
16... Nxe2+ {[%clk 0:01:57.4]} 17. Qxe2 {[%clk 0:02:45.5]} 17... Rxc7 {[%clk
0:01:57.7]} 18. Bb6 {[%clk 0:02:45.6]} 18... Rdc8 {[%clk 0:01:55.4]} 19. Bxc7
{[%clk 0:02:45.2]} 19... Rxc7 {[%clk 0:01:55.7]} 20. Qd2 {[%clk 0:02:42.1]}
20... h6 {[%clk 0:01:50]} 21. Rc1 {[%clk 0:02:34.7]} 21... Bd8 {[%clk
0:01:45.2]} 22. Rxc7 {[%clk 0:02:28.7]} 22... Bxc7 {[%clk 0:01:46.1]} 23. Qb4
{[%clk 0:02:29]} 23... b5 {[%clk 0:01:41.4]} 24. a4 {[%clk 0:02:23.4]} 24...
Bb6+ {[%clk 0:01:40.7]} 25. Kf1 {[%clk 0:02:22.2]} 25... Bc5 {[%clk 0:01:39.2]}
26. Qa5 {[%clk 0:02:21.6]} 26... bxa4 {[%clk 0:01:39.2]} 27. Qxa6 {[%clk
0:02:08.4]} 27... g6 {[%clk 0:01:28.7]} 28. Ke2 {[%clk 0:02:04.2]} 28... Kg7
{[%clk 0:01:28.4]} 29. Kd3 {[%clk 0:02:03.7]} 29... g5 {[%clk 0:01:21.3]} 30. g3
{[%clk 0:02:01.9]} 30... h5 {[%clk 0:01:10.4]} 31. f4 {[%clk 0:02:00.3]} 31...
gxf4 {[%clk 0:01:10.2]} 32. gxf4 {[%clk 0:02:00.8]} 32... Ng4 {[%clk 0:01:08.1]}
33. Qb7 {[%clk 0:01:47.1]} 33... Nf2+ {[%clk 0:01:06.5]} 34. Ke2 {[%clk
0:01:47]} 34... Bg4+ {[%clk 0:01:04.6]} 35. Kf1 {[%clk 0:01:43.5]} 35... Nxe4
{[%clk 0:01:04.9]} 36. Kg2 {[%clk 0:01:40.2]} 36... Nf6 {[%clk 0:00:59.4]} 37.
Kg3 {[%clk 0:01:32.3]} 37... Bd1 {[%clk 0:00:54.2]} 38. Kh4 {[%clk 0:01:26.1]}
38... Bb3 {[%clk 0:00:48.9]} 39. Qe7 {[%clk 0:01:14.1]} 39... Bxd5 {[%clk
0:00:45.3]} 40. Kg5 {[%clk 0:01:08.8]} 40... Bd4 {[%clk 0:00:41.2]} 41. Kh4
{[%clk 0:00:51.6]} 41... Be6 {[%clk 0:00:28.7]} 42. f5 {[%clk 0:00:38.3]} 42...
Bxf5 {[%clk 0:00:21.7]} 43. Kg5 {[%clk 0:00:29]} 43... Be6 {[%clk 0:00:19.7]}
44. Qb7 {[%clk 0:00:18.1]} 44... Bb3 {[%clk 0:00:18.2]} 45. Qb4 {[%clk
0:00:15.9]} 45... Bxb2 {[%clk 0:00:16.3]} 46. h4 {[%clk 0:00:14.1]} 46... Be5
{[%clk 0:00:12]} 47. Kf5 {[%clk 0:00:13.7]} 47... Be6+ {[%clk 0:00:11.3]} 48.
Kg5 {[%clk 0:00:12.3]} 48... Bd7 {[%clk 0:00:09.1]} 49. Qxd6 {[%clk 0:00:07.7]}
49... Bxd6 {[%clk 0:00:07.3]} 1/2-1/2

[Event "*** SCC Grand Prix: Titled Tuesday Blitz"]
[Site "Chess.com"]
[Date "2020.06.02"]
[Round "3"]
[White "zala02"]
[Black "damayito"]
[Result "1-0"]
[WhiteElo "2239"]
[BlackElo "1654"]
[TimeControl "180+1"]
[EndTime "10:29:29 PDT"]
[Termination "zala02 won on time"]

1. d4 {[%clk 0:03:00.9]} 1... d5 {[%clk 0:02:59.3]} 2. c4 {[%clk 0:02:59.4]}
2... c6 {[%clk 0:02:58.8]} 3. Nf3 {[%clk 0:02:58.7]} 3... Nf6 {[%clk 0:02:59.1]}
4. e3 {[%clk 0:02:57.4]} 4... g6 {[%clk 0:02:59.3]} 5. Nc3 {[%clk 0:02:52.1]}
5... Bg7 {[%clk 0:02:59.9]} 6. Bd3 {[%clk 0:02:52.1]} 6... O-O {[%clk
0:02:59.5]} 7. O-O {[%clk 0:02:52]} 7... Bg4 {[%clk 0:02:57.3]} 8. h3 {[%clk
0:02:51.1]} 8... Bd7 {[%clk 0:02:55]} 9. a3 {[%clk 0:02:48.3]} 9... Re8 {[%clk
0:02:50.8]} 10. b4 {[%clk 0:02:45.7]} 10... a6 {[%clk 0:02:45.9]} 11. Bb2 {[%clk
0:02:44.2]} 11... dxc4 {[%clk 0:02:33.4]} 12. Bxc4 {[%clk 0:02:42.6]} 12... Nd5
{[%clk 0:02:33.9]} 13. Nxd5 {[%clk 0:02:36.2]} 13... cxd5 {[%clk 0:02:34.2]} 14.
Bxd5 {[%clk 0:02:36.7]} 14... Bc6 {[%clk 0:02:27.7]} 15. Bxc6 {[%clk 0:02:35.1]}
15... Nxc6 {[%clk 0:02:27.1]} 16. Rc1 {[%clk 0:02:34.4]} 16... Rc8 {[%clk
0:02:25.9]} 17. Qb3 {[%clk 0:02:32.7]} 17... Qd6 {[%clk 0:01:45.7]} 18. Rfd1
{[%clk 0:02:18.6]} 18... Na7 {[%clk 0:01:44.6]} 19. Rxc8 {[%clk 0:02:05.9]}
19... Rxc8 {[%clk 0:01:43.5]} 20. Ne5 {[%clk 0:02:03]} 20... Nb5 {[%clk
0:01:41.5]} 21. Qxf7+ {[%clk 0:02:00.2]} 21... Kh8 {[%clk 0:01:38.6]} 22. Nd3
{[%clk 0:01:49.6]} 22... Rf8 {[%clk 0:01:27]} 23. Qc4 {[%clk 0:01:27.9]} 23...
Nc7 {[%clk 0:01:07.5]} 24. Qc5 {[%clk 0:01:15.2]} 24... Qd7 {[%clk 0:01:01.6]}
25. Rc1 {[%clk 0:00:53]} 25... Ne6 {[%clk 0:01:00.6]} 26. Qc4 {[%clk 0:00:45.2]}
26... Ng5 {[%clk 0:00:59.4]} 27. Qc7 {[%clk 0:00:41.4]} 27... Qf5 {[%clk
0:00:53.5]} 28. Nf4 {[%clk 0:00:28.6]} 28... Ne4 {[%clk 0:00:42.4]} 29. Qxe7
{[%clk 0:00:18.6]} 29... g5 {[%clk 0:00:42.2]} 30. Rc7 {[%clk 0:00:12.7]} 30...
Rg8 {[%clk 0:00:39.4]} 31. Nd3 {[%clk 0:00:10]} 31... g4 {[%clk 0:00:32.3]} 32.
hxg4 {[%clk 0:00:09.9]} 32... Qxg4 {[%clk 0:00:31.9]} 33. d5 {[%clk 0:00:10.4]}
33... Qg6 {[%clk 0:00:18.2]} 34. Bxg7+ {[%clk 0:00:09.1]} 34... Rxg7 {[%clk
0:00:17.9]} 35. Qxg7+ {[%clk 0:00:09.3]} 35... Qxg7 {[%clk 0:00:17.5]} 36. Rxg7
{[%clk 0:00:10.2]} 36... Kxg7 {[%clk 0:00:18]} 37. f3 {[%clk 0:00:10.2]} 37...
Nd6 {[%clk 0:00:17.1]} 38. e4 {[%clk 0:00:10.7]} 38... Kf7 {[%clk 0:00:15.7]}
39. Kf2 {[%clk 0:00:11]} 39... Nc4 {[%clk 0:00:15.6]} 40. a4 {[%clk 0:00:11]}
40... Ke7 {[%clk 0:00:15.7]} 41. Ke2 {[%clk 0:00:09.2]} 41... Nd6 {[%clk
0:00:11.5]} 42. Ke3 {[%clk 0:00:09.1]} 42... Nc4+ {[%clk 0:00:11.3]} 43. Kd4
{[%clk 0:00:09.6]} 43... Kd6 {[%clk 0:00:11.3]} 44. Kxc4 {[%clk 0:00:08.8]}
44... h5 {[%clk 0:00:09]} 45. Kd4 {[%clk 0:00:09.7]} 45... h4 {[%clk 0:00:08.8]}
46. e5+ {[%clk 0:00:10.6]} 46... Kd7 {[%clk 0:00:06.8]} 47. Nf4 {[%clk
0:00:11.2]} 47... Ke7 {[%clk 0:00:06.1]} 48. Ng6+ {[%clk 0:00:10.6]} 48... Kf7
{[%clk 0:00:06]} 49. Nxh4 {[%clk 0:00:11.5]} 1-0

[Event "*** SCC Grand Prix: Titled Tuesday Blitz"]
[Site "Chess.com"]
[Date "2020.06.02"]
[Round "3"]
[White "penguingm1"]
[Black "KaterynaLagno"]
[Result "1-0"]
[WhiteElo "2954"]
[BlackElo "2679"]
[TimeControl "180+1"]
[EndTime "10:29:30 PDT"]
[Termination "penguingm1 won by resignation"]

1. d4 {[%clk 0:03:00.9]} 1... Nf6 {[%clk 0:02:59]} 2. c4 {[%clk 0:02:56.6]} 2...
g6 {[%clk 0:02:59.1]} 3. f3 {[%clk 0:02:54.8]} 3... Bg7 {[%clk 0:02:53.4]} 4. e4
{[%clk 0:02:55.3]} 4... d6 {[%clk 0:02:51.7]} 5. Nc3 {[%clk 0:02:55.8]} 5... O-O
{[%clk 0:02:52]} 6. Nge2 {[%clk 0:02:56.2]} 6... c5 {[%clk 0:02:51.2]} 7. d5
{[%clk 0:02:56.6]} 7... e6 {[%clk 0:02:50.8]} 8. Ng3 {[%clk 0:02:57.2]} 8...
exd5 {[%clk 0:02:48.6]} 9. cxd5 {[%clk 0:02:58.1]} 9... a6 {[%clk 0:02:43.4]}
10. a4 {[%clk 0:02:58.2]} 10... h5 {[%clk 0:02:43.1]} 11. Bg5 {[%clk 0:02:57.5]}
11... Qb6 {[%clk 0:02:41.2]} 12. Qd2 {[%clk 0:02:57.6]} 12... Nh7 {[%clk
0:02:40.7]} 13. a5 {[%clk 0:02:57.8]} 13... Qc7 {[%clk 0:02:40]} 14. Bh6 {[%clk
0:02:58.1]} 14... h4 {[%clk 0:02:38.8]} 15. Bxg7 {[%clk 0:02:58.7]} 15... Kxg7
{[%clk 0:02:39.2]} 16. Nge2 {[%clk 0:02:59.6]} 16... f5 {[%clk 0:02:37.9]} 17.
exf5 {[%clk 0:02:57.9]} 17... Bxf5 {[%clk 0:02:36.9]} 18. g4 {[%clk 0:01:50.9]}
18... Bc8 {[%clk 0:02:31.2]} 19. Bg2 {[%clk 0:01:30.9]} 19... h3 {[%clk
0:02:26.4]} 20. Bxh3 {[%clk 0:01:30.2]} 20... Rxf3 {[%clk 0:02:25.7]} 21. Bg2
{[%clk 0:01:28.6]} 21... Rf8 {[%clk 0:02:23.9]} 22. h3 {[%clk 0:01:18.9]} 22...
Nd7 {[%clk 0:02:22.8]} 23. Nf4 {[%clk 0:01:17.5]} 23... Ne5 {[%clk 0:02:19.7]}
24. O-O {[%clk 0:01:15.9]} 24... Qe7 {[%clk 0:01:57.9]} 25. Ne4 {[%clk
0:01:10.5]} 25... Bd7 {[%clk 0:01:52.4]} 26. Rae1 {[%clk 0:00:55.2]} 26... Kg8
{[%clk 0:01:39.4]} 27. Qc3 {[%clk 0:00:38.8]} 27... Bb5 {[%clk 0:01:34.3]} 28.
Rf2 {[%clk 0:00:30.3]} 28... g5 {[%clk 0:01:26.8]} 29. Nxd6 {[%clk 0:00:12.1]}
29... Qxd6 {[%clk 0:01:21.8]} 30. Rxe5 {[%clk 0:00:11.8]} 30... gxf4 {[%clk
0:01:15.8]} 31. Re6 {[%clk 0:00:12]} 31... Rad8 {[%clk 0:00:29.1]} 32. Rxd6
{[%clk 0:00:11.7]} 32... Rxd6 {[%clk 0:00:30]} 33. Qxc5 {[%clk 0:00:12.4]} 33...
Rdf6 {[%clk 0:00:26.9]} 34. h4 {[%clk 0:00:11.3]} 34... f3 {[%clk 0:00:26.2]}
35. Bh3 {[%clk 0:00:11.7]} 35... Rf4 {[%clk 0:00:25.4]} 36. Kh2 {[%clk 0:00:12]}
36... Nf6 {[%clk 0:00:24.3]} 37. d6 {[%clk 0:00:06.8]} 37... Ne4 {[%clk
0:00:20.3]} 38. Qd5+ {[%clk 0:00:07.3]} 38... Kh8 {[%clk 0:00:20.6]} 39. Qe5+
{[%clk 0:00:07.4]} 39... Kg8 {[%clk 0:00:20.4]} 40. Qe6+ {[%clk 0:00:04.6]}
40... Kh7 {[%clk 0:00:19]} 41. g5 {[%clk 0:00:03.4]} 41... Nxf2 {[%clk
0:00:18.7]} 42. Qh6+ {[%clk 0:00:03.7]} 42... Kg8 {[%clk 0:00:17.2]} 43. Be6+
{[%clk 0:00:03.9]} 43... R8f7 {[%clk 0:00:16.8]} 44. g6 {[%clk 0:00:04.5]} 44...
Ng4+ {[%clk 0:00:13]} 45. Bxg4 {[%clk 0:00:04.9]} 45... Rxg4 {[%clk 0:00:13.9]}
46. gxf7+ {[%clk 0:00:05.2]} 46... Kxf7 {[%clk 0:00:14.7]} 47. Qh5+ {[%clk
0:00:05.8]} 47... Rg6 {[%clk 0:00:14.9]} 48. Qxf3+ {[%clk 0:00:06.1]} 48... Rf6
{[%clk 0:00:14.7]} 49. Qd5+ {[%clk 0:00:06.5]} 49... Kg6 {[%clk 0:00:14.3]} 50.
d7 {[%clk 0:00:04.2]} 50... Bc6 {[%clk 0:00:07.2]} 51. Qg5+ {[%clk 0:00:04]} 1-0

[Event "*** SCC Grand Prix: Titled Tuesday Blitz"]
[Site "Chess.com"]
[Date "2020.06.02"]
[Round "3"]
[White "Smile2005"]
[Black "theblitzchamp"]
[Result "0-1"]
[WhiteElo "2409"]
[BlackElo "2650"]
[TimeControl "180+1"]
[EndTime "10:29:31 PDT"]
[Termination "theblitzchamp won by resignation"]

1. e4 {[%clk 0:02:59.1]} 1... d6 {[%clk 0:02:59.4]} 2. d3 {[%clk 0:02:59.3]}
2... Nc6 {[%clk 0:02:54.8]} 3. Nf3 {[%clk 0:02:59.3]} 3... e5 {[%clk 0:02:53.6]}
4. Be2 {[%clk 0:02:59.8]} 4... g6 {[%clk 0:02:53.3]} 5. O-O {[%clk 0:03:00.4]}
5... Bg7 {[%clk 0:02:53.9]} 6. Nc3 {[%clk 0:03:01.2]} 6... Nge7 {[%clk
0:02:53.5]} 7. Be3 {[%clk 0:02:57.8]} 7... O-O {[%clk 0:02:53.3]} 8. d4 {[%clk
0:02:58.4]} 8... exd4 {[%clk 0:02:48.6]} 9. Nxd4 {[%clk 0:02:58]} 9... Bd7
{[%clk 0:02:48.6]} 10. Qd2 {[%clk 0:02:57.3]} 10... Re8 {[%clk 0:02:46]} 11. f3
{[%clk 0:02:56.3]} 11... a6 {[%clk 0:02:44.6]} 12. Bf2 {[%clk 0:02:56.3]} 12...
h6 {[%clk 0:02:41.6]} 13. Rfe1 {[%clk 0:02:56]} 13... Kh7 {[%clk 0:02:40.9]} 14.
Rad1 {[%clk 0:02:55.9]} 14... b5 {[%clk 0:02:32.7]} 15. a3 {[%clk 0:02:55.4]}
15... Rb8 {[%clk 0:02:29.2]} 16. Bf1 {[%clk 0:02:55.2]} 16... Na5 {[%clk
0:02:28.8]} 17. b3 {[%clk 0:02:49.2]} 17... Nac6 {[%clk 0:02:21.5]} 18. Nxc6
{[%clk 0:02:47.5]} 18... Nxc6 {[%clk 0:02:20.9]} 19. Nd5 {[%clk 0:02:47]} 19...
Be6 {[%clk 0:02:20]} 20. c4 {[%clk 0:02:27.3]} 20... Qd7 {[%clk 0:02:15.7]} 21.
c5 {[%clk 0:02:23.1]} 21... Rbd8 {[%clk 0:02:06.1]} 22. Qc2 {[%clk 0:02:14.2]}
22... Bxd5 {[%clk 0:01:55.6]} 23. Rxd5 {[%clk 0:01:45.4]} 23... Ne7 {[%clk
0:01:49.7]} 24. Rd2 {[%clk 0:01:38.8]} 24... Qe6 {[%clk 0:01:47.5]} 25. Red1
{[%clk 0:01:33.9]} 25... d5 {[%clk 0:01:40.6]} 26. exd5 {[%clk 0:01:26.5]} 26...
Rxd5 {[%clk 0:01:39.6]} 27. Rxd5 {[%clk 0:01:23.1]} 27... Nxd5 {[%clk
0:01:39.2]} 28. Qd3 {[%clk 0:01:10.9]} 28... c6 {[%clk 0:01:37.6]} 29. Re1
{[%clk 0:01:03.6]} 29... Qd7 {[%clk 0:01:31.3]} 30. Rxe8 {[%clk 0:01:02.8]}
30... Qxe8 {[%clk 0:01:31.3]} 31. h4 {[%clk 0:00:54.3]} 31... Qe5 {[%clk
0:01:30.2]} 32. b4 {[%clk 0:00:46.7]} 32... h5 {[%clk 0:01:27.8]} 33. Qe4 {[%clk
0:00:39.6]} 33... Qb2 {[%clk 0:00:49]} 34. g4 {[%clk 0:00:34.2]} 34... hxg4
{[%clk 0:00:43.2]} 35. fxg4 {[%clk 0:00:32.2]} 35... Nf6 {[%clk 0:00:42.6]} 36.
Qf3 {[%clk 0:00:23.5]} 36... Kg8 {[%clk 0:00:34.9]} 37. h5 {[%clk 0:00:23.1]}
37... Nd5 {[%clk 0:00:32.5]} 38. hxg6 {[%clk 0:00:23]} 38... fxg6 {[%clk
0:00:33.4]} 39. Qe4 {[%clk 0:00:18]} 39... Qf6 {[%clk 0:00:18.1]} 40. Bd3 {[%clk
0:00:13.7]} 40... Kh7 {[%clk 0:00:18]} 41. Kg2 {[%clk 0:00:09]} 41... Nf4+
{[%clk 0:00:18]} 42. Kg1 {[%clk 0:00:08.4]} 42... Nh3+ {[%clk 0:00:17.5]} 43.
Kh2 {[%clk 0:00:03.6]} 43... Nxf2 {[%clk 0:00:17.4]} 44. Kg3 {[%clk 0:00:03.8]}
44... Nxe4+ {[%clk 0:00:17.3]} 0-1

[Event "*** SCC Grand Prix: Titled Tuesday Blitz"]
[Site "Chess.com"]
[Date "2020.06.02"]
[Round "3"]
[White "Ceejay271"]
[Black "Ati1517"]
[Result "1-0"]
[WhiteElo "2401"]
[BlackElo "2226"]
[TimeControl "180+1"]
[EndTime "10:29:31 PDT"]
[Termination "Ceejay271 won by resignation"]

1. d4 {[%clk 0:03:00.9]} 1... d5 {[%clk 0:02:59.1]} 2. c4 {[%clk 0:03:01.1]}
2... e6 {[%clk 0:02:57.9]} 3. Nf3 {[%clk 0:03:01.4]} 3... Nf6 {[%clk 0:02:57.7]}
4. g3 {[%clk 0:03:01.4]} 4... c6 {[%clk 0:02:46.6]} 5. Bg2 {[%clk 0:02:58.8]}
5... Bd6 {[%clk 0:02:46.3]} 6. Nc3 {[%clk 0:02:57.8]} 6... O-O {[%clk
0:02:45.7]} 7. O-O {[%clk 0:02:58.4]} 7... Nbd7 {[%clk 0:02:45.2]} 8. Qd3 {[%clk
0:02:58.1]} 8... Qe7 {[%clk 0:02:44.3]} 9. e4 {[%clk 0:02:57.9]} 9... dxe4
{[%clk 0:02:43.1]} 10. Nxe4 {[%clk 0:02:57.2]} 10... Nxe4 {[%clk 0:02:43.6]} 11.
Qxe4 {[%clk 0:02:57]} 11... e5 {[%clk 0:02:43.5]} 12. Re1 {[%clk 0:02:52.5]}
12... f5 {[%clk 0:02:40.6]} 13. Qc2 {[%clk 0:02:47.6]} 13... e4 {[%clk
0:02:39.5]} 14. Bg5 {[%clk 0:02:45.1]} 14... Qf7 {[%clk 0:02:36.2]} 15. Nd2
{[%clk 0:02:39.3]} 15... Qh5 {[%clk 0:02:30.8]} 16. Be3 {[%clk 0:02:16.8]} 16...
Nf6 {[%clk 0:02:30]} 17. Nf1 {[%clk 0:02:07.8]} 17... Be6 {[%clk 0:02:10.6]} 18.
b3 {[%clk 0:01:59.9]} 18... Bf7 {[%clk 0:02:04.1]} 19. f3 {[%clk 0:01:51.8]}
19... exf3 {[%clk 0:01:50.9]} 20. Bh1 {[%clk 0:01:47.5]} 20... f4 {[%clk
0:01:46.7]} 21. Bf2 {[%clk 0:01:38.9]} 21... fxg3 {[%clk 0:01:41.2]} 22. Nxg3
{[%clk 0:01:38.7]} 22... Bxg3 {[%clk 0:01:40.5]} 23. Bxg3 {[%clk 0:01:38.1]}
23... Rfe8 {[%clk 0:01:34.9]} 24. Qf2 {[%clk 0:01:33.1]} 24... Ng4 {[%clk
0:01:22.2]} 25. Qxf3 {[%clk 0:01:30.3]} 25... Be6 {[%clk 0:01:19.2]} 26. Re2
{[%clk 0:01:14.5]} 26... Rf8 {[%clk 0:01:17.3]} 27. Qe4 {[%clk 0:01:09.9]} 27...
Bf5 {[%clk 0:01:16.6]} 28. Qg2 {[%clk 0:01:03.7]} 28... Rad8 {[%clk 0:01:10.3]}
29. d5 {[%clk 0:00:58.4]} 29... Bd3 {[%clk 0:01:01.4]} 30. Re7 {[%clk
0:00:48.7]} 30... Qg5 {[%clk 0:00:51.9]} 31. Rae1 {[%clk 0:00:45]} 31... cxd5
{[%clk 0:00:44.4]} 32. cxd5 {[%clk 0:00:41.6]} 32... h6 {[%clk 0:00:40.3]} 33.
d6 {[%clk 0:00:39.8]} 33... Kh7 {[%clk 0:00:37.8]} 34. Qxb7 {[%clk 0:00:32.2]}
34... Qf6 {[%clk 0:00:27.2]} 35. Bg2 {[%clk 0:00:21.7]} 35... Qd4+ {[%clk
0:00:25.7]} 36. Kh1 {[%clk 0:00:20.1]} 36... Rxd6 {[%clk 0:00:24.8]} 37. Rxg7+
{[%clk 0:00:16.5]} 37... Kh8 {[%clk 0:00:24.4]} 38. Rxg4 {[%clk 0:00:13.6]}
38... Qxg4 {[%clk 0:00:24.2]} 39. Bxd6 {[%clk 0:00:13.5]} 39... Qh4 {[%clk
0:00:13.2]} 40. Bg3 {[%clk 0:00:12.5]} 40... Qd4 {[%clk 0:00:11.1]} 41. Qd5
{[%clk 0:00:11.4]} 41... Qxd5 {[%clk 0:00:09.9]} 42. Bxd5 {[%clk 0:00:11.1]}
42... Rd8 {[%clk 0:00:09.9]} 43. Bf3 {[%clk 0:00:07.2]} 43... Kh7 {[%clk
0:00:09.5]} 44. Rd1 {[%clk 0:00:06.6]} 44... Rd7 {[%clk 0:00:09]} 45. Rxd3
{[%clk 0:00:06.4]} 45... Rxd3 {[%clk 0:00:08.5]} 46. Be4+ {[%clk 0:00:07.1]}
46... Kg7 {[%clk 0:00:09.4]} 47. Bxd3 {[%clk 0:00:07.1]} 47... Kf6 {[%clk
0:00:10.3]} 48. Bf2 {[%clk 0:00:07.9]} 48... Ke6 {[%clk 0:00:11.2]} 49. Kg2
{[%clk 0:00:08.7]} 49... Kd5 {[%clk 0:00:12.1]} 50. Bxa7 {[%clk 0:00:08.5]}
50... Ke5 {[%clk 0:00:13]} 51. Be3 {[%clk 0:00:08.9]} 51... Kd5 {[%clk
0:00:13.6]} 52. Kf3 {[%clk 0:00:08.9]} 52... Ke5 {[%clk 0:00:14.5]} 53. Bxh6
{[%clk 0:00:08.9]} 53... Kd5 {[%clk 0:00:15.4]} 54. Be3 {[%clk 0:00:09.1]} 1-0